fUST/lending_fUST_20250730
["ID","MTS","AMOUNT","RATE_DAILY","PERIOD"]
[376168719,1753883310511,-462.247354,0.00018818,2]
[376168720,1753883310542,-460.0,0.00018818,2]
[376168721,1753883310567,-460.0,0.00018818,2]
[376168722,1753883310591,-460.0,0.00018818,2]
[376168723,1753883310614,-460.0,0.00018818,2]
[376168724,1753883310637,-61.26392784,0.00018818,2]
[376168893,1753883438739,-460.0,0.00018816,2]
[376168895,1753883438750,-300.0,0.00018816,2]
[376168897,1753883438759,-460.0,0.00018817,2]
[376168899,1753883438769,-55.0,0.00018817,2]
[376168901,1753883438780,-405.0,0.00018817,2]
[376168903,1753883438789,-460.0,0.00018817,2]
[376168905,1753883438799,-460.0,0.00018817,2]
[376168907,1753883438810,-280.60753619,0.00018817,2]
[376168969,1753883439746,-179.39246381,0.00018817,2]
[376168972,1753883439756,-460.0,0.00018817,2]
[376168973,1753883439765,-55.70570091,0.00018817,2]
[376168975,1753883439777,-404.29429909,0.00018817,2]
[376168977,1753883439786,-574.96052587,0.00018817,2]
[376168979,1753883439795,-460.0,0.00018817,2]
[376168981,1753883439804,-330.92,0.00018817,2]
[376168984,1753883439813,-460.0,0.00018817,2]
[376168986,1753883439823,-460.0,0.00018817,2]
[376168988,1753883439832,-460.0,0.00018817,2]
[376168989,1753883439842,-460.0,0.00018817,2]
[376168990,1753883439851,-460.0,0.00018817,2]
[376168992,1753883439862,-604.69551116,0.00018817,2]
[376168994,1753883439871,-460.0,0.00018817,2]
[376168997,1753883439881,-460.0,0.00018817,2]
[376168999,1753883439892,-460.0,0.00018817,2]
[376169001,1753883439902,-568.07,0.00018817,2]
[376169003,1753883439911,-463.12880909,0.00018817,2]
[376169005,1753883439920,-460.0,0.00018817,2]
[376169006,1753883439930,-460.0,0.00018817,2]
[376169007,1753883439939,-460.0,0.00018817,2]
[376169008,1753883439950,-460.0,0.00018817,2]
[376169009,1753883439960,-460.0,0.00018817,2]
[376169010,1753883439969,-458.44593449,0.00018817,2]
[376169011,1753883439979,-460.0,0.00018817,2]
[376169012,1753883439989,-460.0,0.00018817,2]
[376169013,1753883439998,-460.0,0.00018817,2]
[376169014,1753883440007,-590.32,0.00018817,2]
[376169015,1753883440016,-460.0,0.00018817,2]
[376169016,1753883440026,-460.0,0.00018817,2]
[376169017,1753883440036,-460.0,0.00018817,2]
[376169018,1753883440045,-460.0,0.00018817,2]
[376169020,1753883440055,-460.0,0.00018817,2]
[376169021,1753883440065,-460.0,0.00018817,2]
[376169023,1753883440074,-460.0,0.00018817,2]
[376169025,1753883440084,-2354.81,0.00018817,2]
[376169027,1753883440095,-398.73607216,0.00018818,2]
[376169029,1753883440104,-460.0,0.00018818,2]
[376169031,1753883440113,-166.78602182,0.00018818,2]
[376169033,1753883440123,-460.0,0.00018818,2]
[376169035,1753883440133,-460.0,0.00018818,2]
[376169037,1753883440142,-460.0,0.00018818,2]
[376169039,1753883440152,-460.0,0.00018818,2]
[376169041,1753883440161,-460.0,0.00018818,2]
[376169043,1753883440171,-460.0,0.00018818,2]
[376169045,1753883440180,-460.0,0.00018818,2]
[376169047,1753883440190,-460.0,0.00018818,2]
[376169049,1753883440199,-460.0,0.00018818,2]
[376169051,1753883440208,-367.59173756,0.00018818,2]
[376169053,1753883440217,-460.0,0.00018818,2]
[376169055,1753883440227,-460.0,0.00018818,2]
[376169056,1753883440236,-460.0,0.00018818,2]
[376169058,1753883440245,-580.77250735,0.00018818,2]
[376169060,1753883440255,-460.0,0.00018818,2]
[376169062,1753883440265,-460.0,0.00018818,2]
[376169063,1753883440274,-460.0,0.00018818,2]
[376169064,1753883440283,-460.0,0.00018818,2]
[376169066,1753883440293,-426.91548351,0.00018818,2]
[376169068,1753883440302,-460.0,0.00018818,2]
[376169070,1753883440311,-460.0,0.00018818,2]
[376169072,1753883440321,-460.0,0.00018818,2]
[376169074,1753883440330,-460.0,0.00018818,2]
[376169076,1753883440339,-460.0,0.00018818,2]
[376169078,1753883440348,-460.0,0.00018818,2]
[376169080,1753883440357,-460.0,0.00018818,2]
[376169082,1753883440366,-460.0,0.00018818,2]
[376169084,1753883440375,-460.0,0.00018818,2]
[376169086,1753883440385,-460.0,0.00018818,2]
[376169088,1753883440394,-460.0,0.00018818,2]
[376169090,1753883440403,-460.0,0.00018818,2]
[376169092,1753883440412,-460.0,0.00018818,2]
[376169094,1753883440422,-460.0,0.00018818,2]
[376169096,1753883440431,-460.0,0.00018818,2]
[376169098,1753883440440,-460.0,0.00018818,2]
[376169100,1753883440449,-460.0,0.00018818,2]
[376169102,1753883440458,-396.31598846,0.00018818,2]
[376169103,1753883440467,-460.0,0.00018818,2]
[376169104,1753883440476,-187.38709205,0.00018818,2]
[376169105,1753883440486,-460.0,0.00018818,2]
[376169106,1753883440496,-460.0,0.00018818,2]
[376169107,1753883440506,-460.0,0.00018818,2]
[376169108,1753883440515,-460.0,0.00018818,2]
[376169109,1753883440524,-460.0,0.00018818,2]
[376169110,1753883440533,-460.0,0.00018818,2]
[376169111,1753883440542,-460.0,0.00018818,2]
[376169112,1753883440552,-460.0,0.00018818,2]
[376169113,1753883440561,-460.0,0.00018818,2]
[376169114,1753883440570,-460.0,0.00018818,2]
[376169115,1753883440579,-621.16,0.00018818,2]
[376169116,1753883440588,-460.0,0.00018818,2]
[376169117,1753883440598,-460.0,0.00018818,2]
[376169118,1753883440607,-460.0,0.00018818,2]
[376169119,1753883440616,-460.0,0.00018818,2]
[376169120,1753883440626,-460.0,0.00018818,2]
[376169121,1753883440637,-460.0,0.00018818,2]
[376169122,1753883440647,-460.0,0.00018818,2]
[376169123,1753883440655,-460.0,0.00018818,2]
[376169124,1753883440664,-460.0,0.00018818,2]
[376169125,1753883440675,-460.0,0.00018818,2]
[376169126,1753883440684,-460.0,0.00018818,2]
[376169127,1753883440693,-460.0,0.00018818,2]
[376169129,1753883440703,-460.0,0.00018818,2]
[376169131,1753883440712,-460.0,0.00018818,2]
[376169133,1753883440721,-460.0,0.00018818,2]
[376169135,1753883440730,-460.0,0.00018818,2]
[376169137,1753883440739,-461.87057614,0.00018818,2]
[376169139,1753883440748,-460.0,0.00018818,2]
[376169141,1753883440758,-460.0,0.00018818,2]
[376169143,1753883440767,-460.0,0.00018818,2]
[376169145,1753883440775,-460.0,0.00018818,2]
[376169147,1753883440785,-460.0,0.00018818,2]
[376169149,1753883440794,-460.0,0.00018818,2]
[376169151,1753883440803,-460.0,0.00018818,2]
[376169153,1753883440812,-460.0,0.00018818,2]
[376169155,1753883440821,-460.0,0.00018818,2]
[376169157,1753883440830,-460.0,0.00018818,2]
[376169159,1753883440839,-500.0,0.00018818,2]
[376169161,1753883440848,-500.0,0.00018818,2]
[376169163,1753883440858,-460.0,0.00018818,2]
[376169165,1753883440867,-460.0,0.00018818,2]
[376169167,1753883440876,-249.46193413,0.00018819,2]
[376169169,1753883440890,-460.0,0.00018819,2]
[376169171,1753883440899,-460.91740901,0.00018819,2]
[376169173,1753883440908,-460.0,0.00018819,2]
[376169175,1753883440917,-460.0,0.00018819,2]
[376169177,1753883440927,-460.0,0.00018819,2]
[376169179,1753883440936,-460.0,0.00018819,2]
[376169181,1753883440945,-460.0,0.00018819,2]
[376169183,1753883440954,-460.0,0.00018819,2]
[376169185,1753883440963,-460.0,0.00018819,2]
[376169187,1753883440972,-472.21419956,0.00018819,2]
[376169189,1753883440982,-460.0,0.00018819,2]
[376169191,1753883440991,-958.11,0.00018819,2]
[376169193,1753883441000,-460.0,0.00018819,2]
[376169195,1753883441010,-648.39,0.00018819,2]
[376169197,1753883441019,-2542.62,0.00018819,2]
[376169199,1753883441028,-655.42,0.00018819,2]
[376169201,1753883441039,-699.34,0.00018819,2]
[376169203,1753883441048,-633.61,0.00018819,2]
[376169205,1753883441058,-500.0,0.00018819,2]
[376169207,1753883441067,-489.5,0.00018819,2]
[376169209,1753883441076,-460.0,0.00018819,2]
[376169211,1753883441086,-151.0,0.00019082,2]
[376169213,1753883441095,-151.0,0.00019082,2]
[376169215,1753883441104,-151.0,0.00019082,2]
[376169217,1753883441114,-151.0,0.00019082,2]
[376169219,1753883441123,-151.0,0.00019082,2]
[376169221,1753883441135,-151.0,0.00019082,2]
[376169223,1753883441144,-151.0,0.00019082,2]
[376169225,1753883441153,-151.0,0.00019082,2]
[376169227,1753883441162,-500.0,0.00019082,2]
[376169229,1753883441173,-405.10140509,0.00019082,2]
[376169231,1753883441182,-460.0,0.0001909,2]
[376169233,1753883441192,-189.56945326,0.00019091,2]
[376169235,1753883441202,-460.0,0.00019091,2]
[376169237,1753883441211,-460.0,0.00019091,2]
[376169239,1753883441221,-460.0,0.00019091,2]
[376169241,1753883441230,-1082.98,0.00019091,2]
[376169243,1753883441240,-511.65,0.00019091,2]
[376169245,1753883441249,-460.0,0.00019091,2]
[376169247,1753883441259,-460.0,0.00019091,2]
[376169249,1753883441268,-460.0,0.00019091,2]
[376169251,1753883441279,-539.61,0.00019091,2]
[376169253,1753883441288,-303.89,0.00019091,2]
[376169255,1753883441298,-460.0,0.00019091,2]
[376169257,1753883441308,-460.0,0.00019091,2]
[376169259,1753883441317,-460.0,0.00019091,2]
[376169261,1753883441327,-396.39,0.00019091,2]
[376169263,1753883441337,-460.0,0.00019091,2]
[376169265,1753883441346,-568.07,0.00019091,2]
[376169267,1753883441356,-460.0,0.00019091,2]
[376169269,1753883441365,-460.0,0.00019091,2]
[376169271,1753883441375,-460.0,0.00019091,2]
[376169273,1753883441387,-460.0,0.00019091,2]
[376169275,1753883441396,-460.0,0.00019091,2]
[376169277,1753883441405,-236.38,0.00019091,2]
[376169279,1753883441414,-2354.81,0.00019091,2]
[376169281,1753883441423,-460.0,0.00019092,2]
[376169283,1753883441433,-460.0,0.00019092,2]
[376169285,1753883441442,-460.0,0.00019092,2]
[376169287,1753883441451,-460.0,0.00019092,2]
[376169289,1753883441461,-460.0,0.00019092,2]
[376169291,1753883441470,-460.0,0.00019092,2]
[376169293,1753883441479,-460.0,0.00019092,2]
[376169295,1753883441489,-460.0,0.00019092,2]
[376169297,1753883441498,-460.0,0.00019092,2]
[376169299,1753883441508,-460.0,0.00019092,2]
[376169301,1753883441517,-460.0,0.00019092,2]
[376169303,1753883441526,-460.0,0.00019092,2]
[376169305,1753883441536,-460.0,0.00019092,2]
[376169307,1753883441545,-511.0,0.00019092,2]
[376169309,1753883441554,-460.0,0.00019092,2]
[376169311,1753883441563,-467.60471983,0.00019092,2]
[376169313,1753883441572,-621.16,0.00019092,2]
[376169315,1753883441582,-460.0,0.00019092,2]
[376169317,1753883441591,-460.0,0.00019092,2]
[376169319,1753883441600,-460.0,0.00019092,2]
[376169321,1753883441610,-460.0,0.00019092,2]
[376169323,1753883441619,-460.0,0.00019092,2]
[376169325,1753883441628,-460.0,0.00019092,2]
[376169327,1753883441639,-460.0,0.00019092,2]
[376169329,1753883441649,-460.0,0.00019092,2]
[376169331,1753883441658,-460.0,0.00019092,2]
[376169333,1753883441667,-460.0,0.00019092,2]
[376169335,1753883441677,-460.0,0.00019092,2]
[376169337,1753883441686,-460.0,0.00019093,2]
[376169339,1753883441696,-460.0,0.00019093,2]
[376169341,1753883441705,-958.11,0.00019093,2]
[376169343,1753883441714,-460.0,0.00019093,2]
[376169345,1753883441723,-648.39,0.00019093,2]
[376169347,1753883441732,-2542.62,0.00019093,2]
[376169349,1753883441741,-655.42,0.00019093,2]
[376169351,1753883441751,-699.34,0.00019093,2]
[376169353,1753883441760,-633.61,0.00019093,2]
[376169355,1753883441768,-489.5,0.00019093,2]
[376169357,1753883441778,-196.282787,0.00019178,2]
[376169359,1753883441787,-500.0,0.00019342,2]
[376169361,1753883441797,-500.0,0.00019342,2]
[376169363,1753883441806,-460.0,0.00019364,2]
[376169365,1753883441815,-281.04808827,0.00019365,2]
[376169367,1753883441824,-475.66749984,0.00019365,2]
[376169369,1753883441833,-547.77,0.00019365,2]
[376169371,1753883441843,-1082.98,0.00019365,2]
[376169373,1753883441852,-460.0,0.00019365,2]
[376169375,1753883441863,-460.0,0.00019365,2]
[376169377,1753883441872,-460.0,0.00019365,2]
[376169379,1753883441886,-539.61,0.00019365,2]
[376169381,1753883441895,-460.0,0.00019365,2]
[376169383,1753883441905,-460.0,0.00019365,2]
[376169385,1753883441915,-460.0,0.00019365,2]
[376169387,1753883441924,-568.07,0.00019365,2]
[376169389,1753883441933,-460.0,0.00019365,2]
[376169391,1753883441943,-460.0,0.00019365,2]
[376169393,1753883441952,-154.74,0.00019365,2]
[376169395,1753883441962,-281.14,0.00019365,2]
[376169397,1753883441971,-2354.81,0.00019365,2]
[376169399,1753883441981,-460.0,0.00019366,2]
[376169401,1753883441990,-460.0,0.00019366,2]
[376169403,1753883441999,-215.00219384,0.00019366,2]
[376169405,1753883442008,-460.0,0.00019366,2]
[376169407,1753883442017,-460.0,0.00019366,2]
[376169409,1753883442027,-460.0,0.00019366,2]
[376169411,1753883442036,-460.0,0.00019366,2]
[376169413,1753883442046,-460.0,0.00019366,2]
[376169415,1753883442055,-621.16,0.00019366,2]
[376169417,1753883442064,-460.0,0.00019366,2]
[376169419,1753883442073,-460.0,0.00019366,2]
[376169421,1753883442083,-460.0,0.00019366,2]
[376169423,1753883442092,-200.19311331,0.00019366,2]
[376169425,1753883442101,-460.0,0.00019366,2]
[376169427,1753883442110,-250.3,0.00019366,2]
[376169429,1753883442120,-460.0,0.00019366,2]
[376169431,1753883442129,-454.52964196,0.00019366,2]
[376169433,1753883442140,-460.0,0.00019366,2]
[376169435,1753883442150,-460.0,0.00019366,2]
[376169437,1753883442159,-460.0,0.00019367,2]
[376169439,1753883442168,-958.11,0.00019367,2]
[376169441,1753883442177,-460.0,0.00019367,2]
[376169443,1753883442186,-648.39,0.00019367,2]
[376169445,1753883442195,-2542.62,0.00019367,2]
[376169447,1753883442204,-655.42,0.00019367,2]
[376169449,1753883442213,-699.34,0.00019367,2]
[376169451,1753883442223,-633.61,0.00019367,2]
[376169453,1753883442233,-489.5,0.00019367,2]
[376169455,1753883442243,-502.34201745,0.00019423,2]
[376169457,1753883442252,-500.0,0.00019426,2]
[376169459,1753883442261,-501.99924546,0.00019426,2]
[376169461,1753883442271,-667.96037793,0.000195,2]
[376169463,1753883442280,-500.0,0.00019588,2]
[376169465,1753883442288,-537.76867247,0.00019588,2]
[376169467,1753883442298,-460.0,0.00019638,2]
[376169468,1753883442307,-1082.98,0.00019639,2]
[376169470,1753883442316,-460.0,0.00019639,2]
[376169472,1753883442326,-460.0,0.00019639,2]
[376169474,1753883442335,-460.0,0.00019639,2]
[376169477,1753883442344,-539.61,0.00019639,2]
[376169479,1753883442354,-460.0,0.00019639,2]
[376169481,1753883442363,-460.0,0.00019639,2]
[376169482,1753883442372,-568.07,0.00019639,2]
[376169484,1753883442382,-460.0,0.00019639,2]
[376169487,1753883442391,-586.42,0.00019639,2]
[376169488,1753883442400,-2354.81,0.00019639,2]
[376169491,1753883442411,-460.0,0.0001964,2]
[376169493,1753883442420,-460.0,0.0001964,2]
[376169495,1753883442430,-460.0,0.0001964,2]
[376169497,1753883442439,-460.0,0.0001964,2]
[376169499,1753883442448,-358.54,0.0001964,2]
[376169501,1753883442458,-460.0,0.0001964,2]
[376169503,1753883442467,-621.16,0.0001964,2]
[376169505,1753883442476,-460.0,0.0001964,2]
[376169507,1753883442485,-460.0,0.0001964,2]
[376169509,1753883442495,-535.06132287,0.0001964,2]
[376169511,1753883442504,-460.0,0.0001964,2]
[376169512,1753883442513,-460.0,0.0001964,2]
[376169515,1753883442523,-460.0,0.0001964,2]
[376169516,1753883442532,-460.0,0.0001964,2]
[376169519,1753883442541,-958.11,0.00019641,2]
[376169520,1753883442550,-460.0,0.00019641,2]
[376169522,1753883442560,-648.39,0.00019641,2]
[376169525,1753883442569,-2542.62,0.00019641,2]
[376169527,1753883442578,-655.42,0.00019641,2]
[376169529,1753883442587,-699.34,0.00019641,2]
[376169531,1753883442596,-633.61,0.00019641,2]
[376169533,1753883442606,-489.5,0.00019641,2]
[376169535,1753883442615,-151.0,0.00019642,2]
[376169537,1753883442624,-151.0,0.00019642,2]
[376169538,1753883442636,-151.0,0.00019642,2]
[376169540,1753883442645,-151.0,0.00019642,2]
[376169543,1753883442655,-500.0,0.00019642,2]
[376169545,1753883442665,-151.0,0.00019642,2]
[376169547,1753883442674,-151.0,0.00019642,2]
[376169549,1753883442683,-151.0,0.00019642,2]
[376169551,1753883442693,-151.31981386,0.00019642,2]
[376169565,1753883442810,-151.0,0.00019642,2]
[376169567,1753883442820,-151.0,0.00019642,2]
[376169569,1753883442829,-151.0,0.00019642,2]
[376169572,1753883442838,-151.0,0.00019642,2]
[376169574,1753883442847,-151.0,0.00019642,2]
[376169576,1753883442858,-151.0,0.00019642,2]
[376169578,1753883442871,-151.0,0.00019642,2]
[376169581,1753883442881,-841.2246943,0.00019669,2]
[376169584,1753883442891,-216.14611358,0.00019669,2]
[376169588,1753883442901,-12639.5777639,0.00019669,2]
[376169590,1753883442910,-1128.41596803,0.00019688,2]
[376169593,1753883442919,-167.414223,0.00019688,2]
[376169596,1753883442928,-167.414223,0.00019688,2]
[376169597,1753883442937,-151.0,0.00019688,2]
[376169599,1753883442947,-1119.207,0.00019695,2]
[376169601,1753883442956,-500.31686769,0.00019714,2]
[376169603,1753883442965,-505.15990573,0.00019714,2]
[376169605,1753883442977,-500.39413732,0.00019714,2]
[376169607,1753883442986,-296.097275,0.00019716,2]
[376169609,1753883442995,-224.729986,0.00019716,2]
[376169611,1753883443004,-224.729986,0.00019716,2]
[376169613,1753883443013,-151.0,0.00019716,2]
[376169615,1753883443022,-178.954,0.00019716,2]
[376169617,1753883443033,-160.1053548,0.00019726,2]
[376169619,1753883443042,-578.1881624,0.00019726,2]
[376169621,1753883443052,-578.0900773,0.00019726,2]
[376169623,1753883443062,-250.0,0.00019728,2]
[376169625,1753883443071,-151.0,0.00019788,2]
[376169627,1753883443081,-306.0,0.000198,2]
[376169630,1753883443091,-151.0,0.00019888,2]
[376169631,1753883443100,-1000.0,0.0001989,2]
[376169633,1753883443110,-1000.0,0.0001989,2]
[376169635,1753883443119,-151.0,0.000199,2]
[376169637,1753883443129,-1116.09055703,0.000199,2]
[376169639,1753883443141,-460.0,0.00019912,2]
[376169641,1753883443150,-1082.98,0.00019913,2]
[376169643,1753883443160,-532.04,0.00019913,2]
[376169645,1753883443170,-460.0,0.00019913,2]
[376169647,1753883443179,-204.01024939,0.00019913,2]
[376169649,1753883443189,-539.61,0.00019913,2]
[376169651,1753883443198,-460.0,0.00019913,2]
[376169653,1753883443208,-460.0,0.00019913,2]
[376169655,1753883443217,-568.07,0.00019913,2]
[376169657,1753883443227,-460.0,0.00019913,2]
[376169659,1753883443237,-460.0,0.00019914,2]
[376169661,1753883443246,-604.0,0.00019914,2]
[376169663,1753883443255,-460.0,0.00019914,2]
[376169665,1753883443265,-460.0,0.00019914,2]
[376169667,1753883443274,-460.0,0.00019914,2]
[376169670,1753883443284,-621.16,0.00019914,2]
[376169672,1753883443293,-460.0,0.00019914,2]
[376169673,1753883443303,-460.0,0.00019914,2]
[376169676,1753883443313,-460.0,0.00019914,2]
[376169678,1753883443322,-219.94,0.00019914,2]
[376169680,1753883443331,-460.0,0.00019914,2]
[376169681,1753883443340,-151.0,0.00019915,2]
[376169683,1753883443349,-151.0,0.00019915,2]
[376169685,1753883443359,-151.0,0.00019915,2]
[376169687,1753883443368,-258.15145505,0.00019915,2]
[376169689,1753883443377,-958.11,0.00019915,2]
[376169691,1753883443388,-460.0,0.00019915,2]
[376169693,1753883443397,-648.39,0.00019915,2]
[376169695,1753883443407,-2542.62,0.00019915,2]
[376169697,1753883443416,-655.42,0.00019915,2]
[376169699,1753883443426,-699.34,0.00019915,2]
[376169701,1753883443435,-633.61,0.00019915,2]
[376169703,1753883443445,-489.5,0.00019915,2]
[376169705,1753883443454,-500.0,0.00019916,2]
[376169707,1753883443464,-151.0,0.00019916,2]
[376169709,1753883443473,-151.0,0.00019916,2]
[376169711,1753883443482,-681.511488,0.00019918,2]
[376169713,1753883443492,-584.093601,0.00019974,2]
[376169715,1753883443501,-151.0,0.00019988,2]
[376169717,1753883443511,-151.0,0.0001999,2]
[376169719,1753883443521,-151.0,0.0001999,2]
[376169721,1753883443531,-151.0,0.0001999,2]
[376169723,1753883443540,-151.0,0.0001999,2]
[376169725,1753883443549,-197.906727,0.0001999,2]
[376169727,1753883443559,-224.729986,0.0001999,2]
[376169729,1753883443568,-224.729986,0.0001999,2]
[376169731,1753883443578,-151.0,0.0001999,2]
[376169733,1753883443587,-167.414223,0.0001999,2]
[376169735,1753883443596,-167.414223,0.0001999,2]
[376169738,1753883443606,-500.0,0.0002,2]
[376169740,1753883443615,-329.97164057,0.0002002,2]
[376169741,1753883443625,-500.0,0.00020068,2]
[376169743,1753883443636,-151.0,0.00020088,2]
[376169745,1753883443645,-501.31404994,0.00020089,2]
[376169748,1753883443654,-1000.0,0.00020136,2]
[376169749,1753883443663,-1116.09055691,0.00020141,2]
[376169751,1753883443673,-460.0,0.00020186,2]
[376169753,1753883443682,-1082.98,0.00020187,2]
[376169755,1753883443691,-532.74,0.00020187,2]
[376169757,1753883443700,-539.61,0.00020187,2]
[376169759,1753883443710,-460.0,0.00020187,2]
[376169761,1753883443719,-460.0,0.00020187,2]
[376169763,1753883443728,-568.07,0.00020187,2]
[376169765,1753883443737,-474.08386904,0.00020187,2]
[376169767,1753883443747,-462.41638643,0.00020188,2]
[376169769,1753883443756,-460.0,0.00020188,2]
[376169771,1753883443765,-460.0,0.00020188,2]
[376169773,1753883443775,-151.0,0.00020188,2]
[376169776,1753883443784,-460.0,0.00020188,2]
[376169778,1753883443794,-621.16,0.00020188,2]
[376169780,1753883443803,-460.0,0.00020188,2]
[376169782,1753883443812,-460.0,0.00020188,2]
[376169783,1753883443822,-460.0,0.00020188,2]
[376169785,1753883443831,-460.0,0.00020188,2]
[376169787,1753883443840,-151.0,0.00020189,2]
[376169789,1753883443849,-958.11,0.00020189,2]
[376169791,1753883443859,-460.0,0.00020189,2]
[376169793,1753883443868,-648.39,0.00020189,2]
[376169795,1753883443878,-2542.62,0.00020189,2]
[376169797,1753883443890,-655.42,0.00020189,2]
[376169799,1753883443899,-699.34,0.00020189,2]
[376169802,1753883443909,-633.61,0.00020189,2]
[376169803,1753883443919,-489.5,0.00020189,2]
[376169805,1753883443929,-502.0,0.0002019,2]
[376169808,1753883443938,-198.0,0.0002019,2]
[376169809,1753883443947,-240.31072359,0.00020214,2]
[376169811,1753883443958,-253.950975,0.00020264,2]
[376169813,1753883443968,-253.950975,0.00020264,2]
[376169815,1753883443978,-151.0,0.00020264,2]
[376169817,1753883443987,-151.0,0.00020288,2]
[376169819,1753883443996,-700.0,0.000203,3]
[376169822,1753883444006,-160.0,0.0002035,2]
[376169823,1753883444015,-1116.09055691,0.00020383,3]
[376169826,1753883444024,-151.0,0.00020388,2]
[376169827,1753883444033,-466.62980719,0.00020438,2]
[376169830,1753883444042,-460.0,0.0002046,2]
[376169832,1753883444052,-1082.98,0.00020461,2]
[376169833,1753883444061,-539.61,0.00020461,2]
[376169835,1753883444070,-460.0,0.00020461,2]
[376169837,1753883444079,-460.0,0.00020461,2]
[376169840,1753883444088,-568.07,0.00020461,2]
[376169841,1753883444097,-460.0,0.00020462,2]
[376169843,1753883444107,-460.0,0.00020462,2]
[376169845,1753883444116,-213.2045483,0.00020462,2]
[376169847,1753883444125,-621.16,0.00020462,2]
[376169849,1753883444134,-372.46,0.00020462,2]
[376169852,1753883444143,-460.0,0.00020462,2]
[376169854,1753883444153,-303.52,0.00020462,2]
[376169855,1753883444162,-151.0,0.00020462,2]
[376169857,1753883444171,-151.0,0.00020462,2]
[376169859,1753883444180,-460.0,0.00020462,2]
[376169861,1753883444190,-198.0,0.00020463,2]
[376169863,1753883444200,-151.0,0.00020463,2]
[376169865,1753883444209,-958.11,0.00020463,2]
[376169867,1753883444218,-648.39,0.00020463,2]
[376169869,1753883444227,-2542.62,0.00020463,2]
[376169871,1753883444237,-655.42,0.00020463,2]
[376169873,1753883444246,-699.34,0.00020463,2]
[376169876,1753883444255,-633.61,0.00020463,2]
[376169877,1753883444265,-489.5,0.00020463,2]
[376169879,1753883444274,-151.0,0.00020488,2]
[376169882,1753883444284,-420.0,0.00020513,2]
[376169883,1753883444293,-681.511488,0.00020538,2]
[376169885,1753883444303,-1000.0,0.00020548,2]
[376169887,1753883444312,-151.0,0.00020588,2]
[376169890,1753883444321,-1116.09055691,0.00020624,3]
[376169891,1753883444330,-2599.80603785,0.00020635,2]
[376169893,1753883444340,-500.0,0.00020684,2]
[376169895,1753883444350,-460.0,0.00020734,2]
[376169897,1753883444359,-500.0,0.00020734,2]
[376169899,1753883444368,-500.87676697,0.00020734,2]
[376169901,1753883444378,-500.0,0.00020734,2]
[376169903,1753883444388,-500.0,0.00020734,2]
[376169905,1753883444397,-500.0,0.00020734,2]
[376169907,1753883444406,-500.0,0.00020734,2]
[376169909,1753883444415,-500.0,0.00020734,2]
[376169911,1753883444424,-333.3350158,0.00020734,2]
[376169913,1753883444434,-500.0,0.00020734,2]
[376169915,1753883444443,-500.0,0.00020734,2]